[Event "Titled Tuesday Blitz August 22 Late 2023"]
[White "GaiozNigalidze"]
[Black "Andreikin, Dmitry"]
[BlackFideId "4158814"]
[WhiteElo "2703"]
[BlackElo "2983"]
[Result "0-1"]
[Round "5"]
[TimeControl "180+1"]
[Date "2023.08.22"]
[WhiteClock "0:00:18"]
[BlackClock "0:01:31"]
[Board "22"]

1. d4 {[%clk 0:03:00]}  Nf6 {[%clk 0:02:59]} 2. c4 {[%clk 0:03:01]}  e6 {[%clk 0:03:00]} 3. Nf3 {[%clk 0:03:01]}  b6 {[%clk 0:02:59]} 4. g3 {[%clk 0:03:00]}  Bb7 {[%clk 0:02:59]} 5. Bg2 {[%clk 0:03:00]}  Bb4+ {[%clk 0:02:59]} 6. Bd2 {[%clk 0:03:00]}  a5 {[%clk 0:02:59]} 7. O-O {[%clk 0:03:00]}  O-O {[%clk 0:02:59]} 8. Nc3 {[%clk 0:03:00]}  d6 {[%clk 0:02:59]} 9. Qc2 {[%clk 0:02:56]}  Nbd7 {[%clk 0:02:57]} 10. b3 {[%clk 0:02:52]}  Qb8 {[%clk 0:02:54]} 11. a3 {[%clk 0:02:36]}  Bxc3 {[%clk 0:02:53]} 12. Bxc3 {[%clk 0:02:36]}  Be4 {[%clk 0:02:54]} 13. Qb2 {[%clk 0:02:34]}  b5 {[%clk 0:02:52]} 14. Qd2 {[%clk 0:01:59]}  a4 {[%clk 0:02:43]} 15. cxb5 {[%clk 0:01:53]}  axb3 {[%clk 0:02:39]} 16. a4 {[%clk 0:01:49]}  Nb6 {[%clk 0:02:37]} 17. Qb2 {[%clk 0:01:18]}  Bc2 {[%clk 0:02:11]} 18. Nd2 {[%clk 0:00:55]}  Nxa4 {[%clk 0:02:07]} 19. Qa3 {[%clk 0:00:50]}  Nxc3 {[%clk 0:02:01]} 20. Qxa8 {[%clk 0:00:50]}  Nxe2+ {[%clk 0:01:54]} 21. Kh1 {[%clk 0:00:49]}  Nxd4 {[%clk 0:01:54]} 22. Qa3 {[%clk 0:00:41]}  Qxb5 {[%clk 0:01:53]} 23. Qb2 {[%clk 0:00:42]}  e5 {[%clk 0:01:51]} 24. Rac1 {[%clk 0:00:39]}  Qd3 {[%clk 0:01:47]} 25. Nb1 {[%clk 0:00:37]}  Ne4 {[%clk 0:01:45]} 26. Na3 {[%clk 0:00:34]}  h5 {[%clk 0:01:31]} 27. Nxc2 {[%clk 0:00:18]}  bxc2 {[%clk 0:01:31]} 0-1


[Site "https://www.chess.com"]

[Event "Titled Tuesday Blitz August 22 Late 2023"]
[White "Holt, Conrad"]
[Black "Rastbod, Ali"]
[WhiteFideId "2034387"]
[BlackFideId "12567477"]
[WhiteElo "2929"]
[BlackElo "2688"]
[Result "1-0"]
[Round "5"]
[TimeControl "180+1"]
[Date "2023.08.22"]
[WhiteClock "0:00:56"]
[BlackClock "0:00:26"]
[Board "24"]

1. d4 {[%clk 0:02:04]}  Nf6 {[%clk 0:02:59]} 2. c4 {[%clk 0:02:04]}  e6 {[%clk 0:03:00]} 3. Nc3 {[%clk 0:02:05]}  Bb4 {[%clk 0:03:00]} 4. Qc2 {[%clk 0:02:05]}  d5 {[%clk 0:03:01]} 5. cxd5 {[%clk 0:02:05]}  exd5 {[%clk 0:03:02]} 6. Bg5 {[%clk 0:02:04]}  h6 {[%clk 0:03:01]} 7. Bxf6 {[%clk 0:02:02]}  Qxf6 {[%clk 0:03:01]} 8. a3 {[%clk 0:02:03]}  Bxc3+ {[%clk 0:02:58]} 9. Qxc3 {[%clk 0:02:03]}  O-O {[%clk 0:02:56]} 10. e3 {[%clk 0:02:04]}  Bf5 {[%clk 0:02:11]} 11. Rc1 {[%clk 0:01:53]}  c6 {[%clk 0:02:04]} 12. Ne2 {[%clk 0:01:43]}  Nd7 {[%clk 0:01:57]} 13. Nf4 {[%clk 0:01:40]}  g5 {[%clk 0:01:50]} 14. Nh5 {[%clk 0:01:36]}  Qe6 {[%clk 0:01:47]} 15. h4 {[%clk 0:01:34]}  f6 {[%clk 0:01:26]} 16. Ng3 {[%clk 0:01:27]}  Bg6 {[%clk 0:01:26]} 17. hxg5 {[%clk 0:01:08]}  hxg5 {[%clk 0:01:27]} 18. Bd3 {[%clk 0:01:06]}  f5 {[%clk 0:01:24]} 19. Rh6 {[%clk 0:01:05]}  Kg7 {[%clk 0:01:02]} 20. Nxf5+ {[%clk 0:01:03]}  Rxf5 {[%clk 0:00:59]} 21. Rxg6+ {[%clk 0:01:03]}  Qxg6 {[%clk 0:00:53]} 22. g4 {[%clk 0:01:03]}  Qh6 {[%clk 0:00:46]} 23. Bxf5 {[%clk 0:01:03]}  Nf6 {[%clk 0:00:47]} 24. Qb4 {[%clk 0:00:59]}  Re8 {[%clk 0:00:41]} 25. Qxb7+ {[%clk 0:00:58]}  Kf8 {[%clk 0:00:26]} 26. Rxc6 {[%clk 0:00:56]} 1-0


[Site "https://www.chess.com"]

[Event "Titled Tuesday Blitz August 22 Late 2023"]
[White "Tatarinov, Dmitry"]
[Black "Dominguez Perez, Leinier"]
[WhiteFideId "24160067"]
[BlackFideId "3503240"]
[WhiteElo "2680"]
[BlackElo "2914"]
[Result "0-1"]
[Round "5"]
[TimeControl "180+1"]
[Date "2023.08.22"]
[WhiteClock "0:00:13"]
[BlackClock "0:00:21"]
[Board "27"]

1. d4 {[%clk 0:02:59]}  Nf6 {[%clk 0:02:59]} 2. c4 {[%clk 0:02:59]}  e6 {[%clk 0:02:59]} 3. Nc3 {[%clk 0:02:59]}  Bb4 {[%clk 0:02:59]} 4. Bd2 {[%clk 0:02:59]}  O-O {[%clk 0:02:58]} 5. e3 {[%clk 0:03:00]}  b6 {[%clk 0:02:58]} 6. Nf3 {[%clk 0:02:59]}  Bb7 {[%clk 0:02:58]} 7. Bd3 {[%clk 0:02:59]}  d5 {[%clk 0:02:57]} 8. cxd5 {[%clk 0:02:55]}  exd5 {[%clk 0:02:57]} 9. Qc2 {[%clk 0:02:54]}  c5 {[%clk 0:02:52]} 10. a3 {[%clk 0:02:44]}  Bxc3 {[%clk 0:02:52]} 11. Bxc3 {[%clk 0:02:43]}  c4 {[%clk 0:02:52]} 12. Bf5 {[%clk 0:02:42]}  Nbd7 {[%clk 0:02:47]} 13. O-O {[%clk 0:02:41]}  b5 {[%clk 0:02:45]} 14. Ne5 {[%clk 0:02:40]}  g6 {[%clk 0:02:35]} 15. Bxd7 {[%clk 0:02:21]}  Nxd7 {[%clk 0:02:34]} 16. f3 {[%clk 0:02:16]}  a5 {[%clk 0:02:29]} 17. b4 {[%clk 0:01:47]}  axb4 {[%clk 0:02:14]} 18. Bxb4 {[%clk 0:01:43]}  Re8 {[%clk 0:02:13]} 19. Qb2 {[%clk 0:01:35]}  Qc7 {[%clk 0:02:03]} 20. Bc3 {[%clk 0:01:31]}  Bc6 {[%clk 0:02:00]} 21. h4 {[%clk 0:01:18]}  f6 {[%clk 0:01:49]} 22. Nxd7 {[%clk 0:01:13]}  Qxd7 {[%clk 0:01:48]} 23. Rae1 {[%clk 0:01:13]}  Re6 {[%clk 0:01:43]} 24. h5 {[%clk 0:00:59]}  Rae8 {[%clk 0:01:41]} 25. Qf2 {[%clk 0:00:58]}  Qe7 {[%clk 0:01:34]} 26. Qg3 {[%clk 0:00:51]}  g5 {[%clk 0:01:07]} 27. Bb4 {[%clk 0:00:50]}  Qf7 {[%clk 0:01:07]} 28. f4 {[%clk 0:00:45]}  Qxh5 {[%clk 0:01:04]} 29. fxg5 {[%clk 0:00:44]}  Qxg5 {[%clk 0:01:03]} 30. Qc7 {[%clk 0:00:37]}  Qg7 {[%clk 0:00:57]} 31. Qf4 {[%clk 0:00:35]}  Re4 {[%clk 0:00:36]} 32. Qxf6 {[%clk 0:00:35]}  Qxf6 {[%clk 0:00:36]} 33. Rxf6 {[%clk 0:00:34]}  R8e6 {[%clk 0:00:36]} 34. Rf8+ {[%clk 0:00:33]}  Kg7 {[%clk 0:00:36]} 35. Ref1 {[%clk 0:00:33]}  Be8 {[%clk 0:00:32]} 36. Bd2 {[%clk 0:00:20]}  Bg6 {[%clk 0:00:24]} 37. Rb8 {[%clk 0:00:20]}  Rg4 {[%clk 0:00:23]} 38. Rf2 {[%clk 0:00:20]}  Be4 {[%clk 0:00:23]} 39. Rxb5 {[%clk 0:00:20]}  Reg6 {[%clk 0:00:23]} 40. Rb7+ {[%clk 0:00:20]}  Kh6 {[%clk 0:00:23]} 41. a4 {[%clk 0:00:18]}  Rxg2+ {[%clk 0:00:24]} 42. Kf1 {[%clk 0:00:13]}  Bd3+ {[%clk 0:00:21]} 0-1


[Site "https://www.chess.com"]

[Event "Titled Tuesday Blitz August 22 Late 2023"]
[White "Ibarra Jerez, Jose Carlos"]
[Black "Ghasi, Ameet K"]
[WhiteFideId "2226332"]
[BlackFideId "409200"]
[WhiteElo "2901"]
[BlackElo "2679"]
[Result "1-0"]
[Round "5"]
[TimeControl "180+1"]
[Date "2023.08.22"]
[WhiteClock "0:00:04"]
[BlackClock "0:00:00"]
[Board "28"]

1. e4 {[%clk 0:03:00]}  g6 {[%clk 0:03:00]} 2. d4 {[%clk 0:03:00]}  Bg7 {[%clk 0:03:00]} 3. Nf3 {[%clk 0:03:00]}  d6 {[%clk 0:03:01]} 4. Bc4 {[%clk 0:03:01]}  Nf6 {[%clk 0:03:01]} 5. Qe2 {[%clk 0:03:01]}  c6 {[%clk 0:02:59]} 6. e5 {[%clk 0:03:01]}  Nd5 {[%clk 0:02:59]} 7. h3 {[%clk 0:03:01]}  O-O {[%clk 0:02:59]} 8. O-O {[%clk 0:03:01]}  Nd7 {[%clk 0:02:58]} 9. Re1 {[%clk 0:02:59]}  N7b6 {[%clk 0:02:50]} 10. Bb3 {[%clk 0:02:59]}  a5 {[%clk 0:02:50]} 11. a3 {[%clk 0:02:53]}  a4 {[%clk 0:02:29]} 12. Ba2 {[%clk 0:02:53]}  Bf5 {[%clk 0:02:30]} 13. c4 {[%clk 0:02:52]}  Nc7 {[%clk 0:02:30]} 14. Rd1 {[%clk 0:02:34]}  d5 {[%clk 0:02:14]} 15. c5 {[%clk 0:02:30]}  Nc4 {[%clk 0:01:58]} 16. Nc3 {[%clk 0:02:24]}  Nb5 {[%clk 0:01:48]} 17. Bxc4 {[%clk 0:02:19]}  dxc4 {[%clk 0:01:43]} 18. Qxc4 {[%clk 0:02:20]}  Be6 {[%clk 0:01:44]} 19. Qe2 {[%clk 0:02:07]}  Bb3 {[%clk 0:01:41]} 20. Rd2 {[%clk 0:02:05]}  Nxc3 {[%clk 0:01:32]} 21. bxc3 {[%clk 0:02:05]}  b6 {[%clk 0:01:30]} 22. cxb6 {[%clk 0:01:37]}  Qxb6 {[%clk 0:01:31]} 23. Rb2 {[%clk 0:01:37]}  Qa5 {[%clk 0:01:27]} 24. Bd2 {[%clk 0:01:34]}  Qd5 {[%clk 0:01:19]} 25. Bg5 {[%clk 0:01:31]}  f6 {[%clk 0:01:18]} 26. Bf4 {[%clk 0:01:30]}  g5 {[%clk 0:01:03]} 27. Bg3 {[%clk 0:01:27]}  c5 {[%clk 0:00:44]} 28. Nd2 {[%clk 0:01:16]}  c4 {[%clk 0:00:44]} 29. Ne4 {[%clk 0:01:09]}  h6 {[%clk 0:00:42]} 30. Nc5 {[%clk 0:00:59]}  fxe5 {[%clk 0:00:42]} 31. Bxe5 {[%clk 0:00:58]}  Bxe5 {[%clk 0:00:42]} 32. Qxe5 {[%clk 0:00:59]}  Qxe5 {[%clk 0:00:42]} 33. dxe5 {[%clk 0:01:00]}  Rfd8 {[%clk 0:00:41]} 34. Rc1 {[%clk 0:00:55]}  Rd5 {[%clk 0:00:39]} 35. Ne4 {[%clk 0:00:47]}  Rxe5 {[%clk 0:00:40]} 36. Re2 {[%clk 0:00:46]}  Rd8 {[%clk 0:00:37]} 37. f3 {[%clk 0:00:42]}  Red5 {[%clk 0:00:33]} 38. Rce1 {[%clk 0:00:42]}  Rd1 {[%clk 0:00:32]} 39. Kf2 {[%clk 0:00:43]}  Kf7 {[%clk 0:00:27]} 40. h4 {[%clk 0:00:27]}  gxh4 {[%clk 0:00:27]} 41. Ke3 {[%clk 0:00:25]}  e5 {[%clk 0:00:22]} 42. Nf2 {[%clk 0:00:17]}  Rxe1 {[%clk 0:00:18]} 43. Rxe1 {[%clk 0:00:18]}  Rg8 {[%clk 0:00:18]} 44. Ng4 {[%clk 0:00:16]}  Ke6 {[%clk 0:00:16]} 45. Kf2 {[%clk 0:00:14]}  Rg5 {[%clk 0:00:16]} 46. Rh1 {[%clk 0:00:12]}  h5 {[%clk 0:00:16]} 47. Ne3 {[%clk 0:00:13]}  Rg8 {[%clk 0:00:14]} 48. Rxh4 {[%clk 0:00:14]}  Rd8 {[%clk 0:00:15]} 49. Nxc4 {[%clk 0:00:09]}  Rc8 {[%clk 0:00:13]} 50. Nb6 {[%clk 0:00:09]}  Rxc3 {[%clk 0:00:13]} 51. Nxa4 {[%clk 0:00:09]}  Rc2+ {[%clk 0:00:13]} 52. Kg3 {[%clk 0:00:09]}  Bd5 {[%clk 0:00:06]} 53. Nb6 {[%clk 0:00:08]}  Bb3 {[%clk 0:00:05]} 54. Rxh5 {[%clk 0:00:07]}  Ra2 {[%clk 0:00:05]} 55. a4 {[%clk 0:00:04]}  Rb2 {[%clk 0:00:03]} 56. Rh4 {[%clk 0:00:03]}  Kf5 {[%clk 0:00:03]} 57. Rb4 {[%clk 0:00:03]}  Rb1 {[%clk 0:00:03]} 58. a5 {[%clk 0:00:03]}  Bc2 {[%clk 0:00:01]} 59. Rxb1 {[%clk 0:00:03]}  Bxb1 {[%clk 0:00:02]} 60. a6 {[%clk 0:00:04]}  Be4 {[%clk 0:00:00]} 61. fxe4+ {[%clk 0:00:04]} 1-0


[Site "https://www.chess.com"]

[Event "Titled Tuesday Blitz August 22 Late 2023"]
[White "Skvortsov, Andrei"]
[Black "Sjugirov, Sanan"]
[WhiteFideId "24108600"]
[BlackFideId "4189302"]
[WhiteElo "2673"]
[BlackElo "2881"]
[Result "0-1"]
[Round "5"]
[TimeControl "180+1"]
[Date "2023.08.22"]
[WhiteClock "0:00:00"]
[BlackClock "0:00:03"]
[Board "31"]

1. e4 {[%clk 0:03:00]}  e6 {[%clk 0:02:54]} 2. d4 {[%clk 0:02:58]}  d5 {[%clk 0:02:54]} 3. exd5 {[%clk 0:02:59]}  exd5 {[%clk 0:02:54]} 4. Nf3 {[%clk 0:03:00]}  Nf6 {[%clk 0:02:54]} 5. Bd3 {[%clk 0:02:59]}  Bg4 {[%clk 0:02:52]} 6. O-O {[%clk 0:02:57]}  Be7 {[%clk 0:02:48]} 7. h3 {[%clk 0:02:57]}  Bh5 {[%clk 0:02:47]} 8. Re1 {[%clk 0:02:51]}  O-O {[%clk 0:02:47]} 9. g4 {[%clk 0:02:44]}  Bg6 {[%clk 0:02:47]} 10. Nc3 {[%clk 0:02:43]}  c6 {[%clk 0:02:46]} 11. Ne5 {[%clk 0:02:43]}  Nfd7 {[%clk 0:02:15]} 12. Nxg6 {[%clk 0:02:28]}  hxg6 {[%clk 0:02:16]} 13. Ne2 {[%clk 0:02:25]}  Re8 {[%clk 0:02:14]} 14. Ng3 {[%clk 0:02:24]}  Nf8 {[%clk 0:02:14]} 15. c3 {[%clk 0:02:23]}  Nbd7 {[%clk 0:02:13]} 16. Qf3 {[%clk 0:02:20]}  Bh4 {[%clk 0:02:00]} 17. Bd2 {[%clk 0:02:17]}  Ne6 {[%clk 0:01:58]} 18. Kg2 {[%clk 0:02:08]}  Bg5 {[%clk 0:01:56]} 19. Bxg5 {[%clk 0:02:02]}  Qxg5 {[%clk 0:01:57]} 20. Ne2 {[%clk 0:01:58]}  Qd2 {[%clk 0:01:51]} 21. Rab1 {[%clk 0:01:56]}  Ng5 {[%clk 0:01:43]} 22. Qg3 {[%clk 0:01:49]}  Ne4 {[%clk 0:01:37]} 23. Qe3 {[%clk 0:01:40]}  Qxe3 {[%clk 0:01:32]} 24. fxe3 {[%clk 0:01:41]}  Ndf6 {[%clk 0:01:26]} 25. Rbd1 {[%clk 0:01:37]}  Re7 {[%clk 0:01:24]} 26. Ng3 {[%clk 0:01:36]}  Rae8 {[%clk 0:01:14]} 27. Nxe4 {[%clk 0:01:36]}  Nxe4 {[%clk 0:01:15]} 28. Re2 {[%clk 0:01:32]}  f5 {[%clk 0:01:08]} 29. gxf5 {[%clk 0:01:29]}  gxf5 {[%clk 0:01:09]} 30. Rf1 {[%clk 0:01:29]}  g6 {[%clk 0:01:09]} 31. Bxe4 {[%clk 0:01:26]}  Rxe4 {[%clk 0:01:08]} 32. Rf3 {[%clk 0:01:26]}  Kg7 {[%clk 0:01:05]} 33. Kf2 {[%clk 0:01:23]}  Kh6 {[%clk 0:01:03]} 34. Re1 {[%clk 0:01:16]}  Kg7 {[%clk 0:00:23]} 35. Rg1 {[%clk 0:01:14]}  Kf6 {[%clk 0:00:23]} 36. Rfg3 {[%clk 0:01:10]}  Rg8 {[%clk 0:00:23]} 37. Kf3 {[%clk 0:01:05]}  g5 {[%clk 0:00:22]} 38. Kf2 {[%clk 0:01:06]}  b6 {[%clk 0:00:19]} 39. Kf3 {[%clk 0:01:05]}  c5 {[%clk 0:00:17]} 40. b3 {[%clk 0:01:00]}  a5 {[%clk 0:00:14]} 41. Kf2 {[%clk 0:00:56]}  Rg7 {[%clk 0:00:10]} 42. Rd1 {[%clk 0:00:52]}  cxd4 {[%clk 0:00:07]} 43. exd4 {[%clk 0:00:30]}  Rge7 {[%clk 0:00:06]} 44. Rd2 {[%clk 0:00:28]}  f4 {[%clk 0:00:06]} 45. Rgd3 {[%clk 0:00:25]}  Kf5 {[%clk 0:00:03]} 46. c4 {[%clk 0:00:25]}  Rd7 {[%clk 0:00:02]} 47. c5 {[%clk 0:00:25]}  b5 {[%clk 0:00:02]} 48. c6 {[%clk 0:00:20]}  Rc7 {[%clk 0:00:03]} 49. Rc2 {[%clk 0:00:20]}  Ke6 {[%clk 0:00:02]} 50. Rc5 {[%clk 0:00:21]}  Kd6 {[%clk 0:00:02]} 51. Rxb5 {[%clk 0:00:20]}  Rxc6 {[%clk 0:00:02]} 52. Rd2 {[%clk 0:00:20]}  Re3 {[%clk 0:00:02]} 53. Rxa5 {[%clk 0:00:18]}  Rxh3 {[%clk 0:00:02]} 54. Kg2 {[%clk 0:00:17]}  Rcc3 {[%clk 0:00:02]} 55. Ra6+ {[%clk 0:00:17]}  Kc7 {[%clk 0:00:02]} 56. Rg6 {[%clk 0:00:13]}  Rcg3+ {[%clk 0:00:02]} 57. Kf1 {[%clk 0:00:13]}  Rh1+ {[%clk 0:00:02]} 58. Ke2 {[%clk 0:00:14]}  Rh2+ {[%clk 0:00:03]} 59. Kd1 {[%clk 0:00:13]}  Rg1+ {[%clk 0:00:03]} 60. Kc2 {[%clk 0:00:14]}  Rxd2+ {[%clk 0:00:03]} 61. Kxd2 {[%clk 0:00:15]}  g4 {[%clk 0:00:03]} 62. a4 {[%clk 0:00:09]}  f3 {[%clk 0:00:03]} 63. Ke3 {[%clk 0:00:09]}  Rg2 {[%clk 0:00:03]} 64. a5 {[%clk 0:00:08]}  Re2+ {[%clk 0:00:03]} 65. Kd3 {[%clk 0:00:09]}  Re1 {[%clk 0:00:02]} 66. Rf6 {[%clk 0:00:02]}  g3 {[%clk 0:00:03]} 67. Rf7+ {[%clk 0:00:02]}  Kb8 {[%clk 0:00:03]} 68. Rf8+ {[%clk 0:00:00]}  Ka7 {[%clk 0:00:03]} 0-1


[Site "https://www.chess.com"]

[Event "Titled Tuesday Blitz August 22 Late 2023"]
[White "Zierk, Steven"]
[Black "Kleiman, Jake"]
[WhiteFideId "2034255"]
[BlackFideId "2020041"]
[WhiteElo "2858"]
[BlackElo "2664"]
[Result "1-0"]
[Round "5"]
[TimeControl "180+1"]
[Date "2023.08.22"]
[WhiteClock "0:00:51"]
[BlackClock "0:00:04"]
[Board "34"]

1. e4 {[%clk 0:03:00]}  e5 {[%clk 0:02:59]} 2. Nf3 {[%clk 0:03:01]}  Nc6 {[%clk 0:03:00]} 3. Bc4 {[%clk 0:02:59]}  Bc5 {[%clk 0:02:59]} 4. c3 {[%clk 0:02:59]}  Nf6 {[%clk 0:03:00]} 5. d4 {[%clk 0:02:58]}  exd4 {[%clk 0:03:00]} 6. e5 {[%clk 0:02:59]}  d5 {[%clk 0:03:01]} 7. Bb5 {[%clk 0:02:57]}  Ne4 {[%clk 0:03:01]} 8. cxd4 {[%clk 0:02:57]}  Bb6 {[%clk 0:02:56]} 9. Nc3 {[%clk 0:02:57]}  Nxc3 {[%clk 0:02:55]} 10. bxc3 {[%clk 0:02:57]}  O-O {[%clk 0:02:55]} 11. Bg5 {[%clk 0:02:51]}  Qe8 {[%clk 0:02:38]} 12. O-O {[%clk 0:02:49]}  Bd7 {[%clk 0:02:19]} 13. Bd3 {[%clk 0:02:46]}  Na5 {[%clk 0:02:19]} 14. Nd2 {[%clk 0:02:35]}  c5 {[%clk 0:01:57]} 15. Be3 {[%clk 0:02:25]}  cxd4 {[%clk 0:01:54]} 16. cxd4 {[%clk 0:02:26]}  Bb5 {[%clk 0:01:52]} 17. Qe2 {[%clk 0:02:20]}  Bxd3 {[%clk 0:01:50]} 18. Qxd3 {[%clk 0:02:21]}  Rc8 {[%clk 0:01:40]} 19. f4 {[%clk 0:02:09]}  f5 {[%clk 0:01:28]} 20. exf6 {[%clk 0:02:05]}  Rxf6 {[%clk 0:01:26]} 21. Nf3 {[%clk 0:02:00]}  Nc4 {[%clk 0:01:12]} 22. Ne5 {[%clk 0:01:59]}  Qe6 {[%clk 0:00:59]} 23. Rac1 {[%clk 0:01:51]}  Nd6 {[%clk 0:00:48]} 24. g4 {[%clk 0:01:39]}  Rxc1 {[%clk 0:00:39]} 25. Rxc1 {[%clk 0:01:40]}  Rf8 {[%clk 0:00:32]} 26. f5 {[%clk 0:01:35]}  Qe8 {[%clk 0:00:29]} 27. Qb3 {[%clk 0:01:25]}  Qb5 {[%clk 0:00:29]} 28. Qxb5 {[%clk 0:01:25]}  Nxb5 {[%clk 0:00:30]} 29. Nd7 {[%clk 0:01:25]}  Re8 {[%clk 0:00:16]} 30. Nxb6 {[%clk 0:01:24]}  axb6 {[%clk 0:00:17]} 31. Kf2 {[%clk 0:01:20]}  Nd6 {[%clk 0:00:15]} 32. Bf4 {[%clk 0:01:18]}  Nc4 {[%clk 0:00:14]} 33. Re1 {[%clk 0:01:11]}  Rxe1 {[%clk 0:00:14]} 34. Kxe1 {[%clk 0:01:12]}  Kf7 {[%clk 0:00:14]} 35. Ke2 {[%clk 0:01:10]}  b5 {[%clk 0:00:12]} 36. Kd3 {[%clk 0:01:09]}  Ke7 {[%clk 0:00:12]} 37. Kc3 {[%clk 0:01:08]}  Kf6 {[%clk 0:00:12]} 38. Kb4 {[%clk 0:01:07]}  h5 {[%clk 0:00:10]} 39. h3 {[%clk 0:01:07]}  hxg4 {[%clk 0:00:10]} 40. hxg4 {[%clk 0:01:07]}  g6 {[%clk 0:00:10]} 41. fxg6 {[%clk 0:01:07]}  Kxg6 {[%clk 0:00:11]} 42. Kc5 {[%clk 0:01:05]}  Na3 {[%clk 0:00:06]} 43. Kxd5 {[%clk 0:01:04]}  Nc2 {[%clk 0:00:06]} 44. Kc5 {[%clk 0:00:53]}  b6+ {[%clk 0:00:07]} 45. Kxb5 {[%clk 0:00:52]}  Nxd4+ {[%clk 0:00:07]} 46. Kxb6 {[%clk 0:00:53]}  Ne6 {[%clk 0:00:06]} 47. Be3 {[%clk 0:00:52]}  Nf8 {[%clk 0:00:05]} 48. a4 {[%clk 0:00:52]}  Nd7+ {[%clk 0:00:06]} 49. Kc7 {[%clk 0:00:52]}  Ne5 {[%clk 0:00:06]} 50. a5 {[%clk 0:00:52]}  Nxg4 {[%clk 0:00:06]} 51. Bd4 {[%clk 0:00:51]}  Nh6 {[%clk 0:00:04]} 52. a6 {[%clk 0:00:51]}  Nf5 {[%clk 0:00:04]} 53. Bc5 {[%clk 0:00:51]} 1-0


[Site "https://www.chess.com"]

[Event "Titled Tuesday Blitz August 22 Late 2023"]
[White "Asadli, Vugar"]
[Black "Ehlvest, Jaan"]
[WhiteFideId "13405764"]
[BlackFideId "4500016"]
[WhiteElo "2848"]
[BlackElo "2660"]
[Result "1/2-1/2"]
[Round "5"]
[TimeControl "180+1"]
[Date "2023.08.22"]
[WhiteClock "0:01:23"]
[BlackClock "0:00:07"]
[Board "35"]

1. e4 {[%clk 0:03:00]}  c6 {[%clk 0:02:55]} 2. Nf3 {[%clk 0:03:00]}  d5 {[%clk 0:02:54]} 3. e5 {[%clk 0:03:01]}  Bg4 {[%clk 0:02:46]} 4. Be2 {[%clk 0:03:01]}  e6 {[%clk 0:02:45]} 5. O-O {[%clk 0:03:00]}  Nd7 {[%clk 0:02:43]} 6. d4 {[%clk 0:03:00]}  Ne7 {[%clk 0:02:40]} 7. Nbd2 {[%clk 0:02:59]}  c5 {[%clk 0:02:36]} 8. c3 {[%clk 0:02:59]}  Nc6 {[%clk 0:02:34]} 9. h3 {[%clk 0:02:56]}  Bh5 {[%clk 0:02:33]} 10. Nb3 {[%clk 0:02:53]}  Rc8 {[%clk 0:02:26]} 11. Be3 {[%clk 0:02:52]}  cxd4 {[%clk 0:02:22]} 12. cxd4 {[%clk 0:02:48]}  Be7 {[%clk 0:02:20]} 13. Ne1 {[%clk 0:02:46]}  Bxe2 {[%clk 0:02:16]} 14. Qxe2 {[%clk 0:02:47]}  O-O {[%clk 0:02:15]} 15. f4 {[%clk 0:02:45]}  a5 {[%clk 0:02:05]} 16. f5 {[%clk 0:02:36]}  exf5 {[%clk 0:02:04]} 17. Rxf5 {[%clk 0:02:35]}  Nb6 {[%clk 0:02:02]} 18. Nd3 {[%clk 0:02:34]}  Nc4 {[%clk 0:01:59]} 19. Raf1 {[%clk 0:02:33]}  b6 {[%clk 0:01:49]} 20. a4 {[%clk 0:02:26]}  Qd7 {[%clk 0:01:48]} 21. Bg5 {[%clk 0:02:15]}  Bxg5 {[%clk 0:01:36]} 22. Rxg5 {[%clk 0:02:15]}  Nd8 {[%clk 0:01:37]} 23. Nf4 {[%clk 0:02:08]}  Ne6 {[%clk 0:01:33]} 24. Rg3 {[%clk 0:01:59]}  f5 {[%clk 0:01:16]} 25. Nxe6 {[%clk 0:01:49]}  Qxe6 {[%clk 0:01:16]} 26. Nc1 {[%clk 0:01:50]}  f4 {[%clk 0:01:10]} 27. Rc3 {[%clk 0:01:49]}  g5 {[%clk 0:01:04]} 28. Nd3 {[%clk 0:01:47]}  Ne3 {[%clk 0:01:00]} 29. Rf2 {[%clk 0:01:46]}  Rxc3 {[%clk 0:00:57]} 30. bxc3 {[%clk 0:01:46]}  Rc8 {[%clk 0:00:56]} 31. h4 {[%clk 0:01:42]}  Rxc3 {[%clk 0:00:26]} 32. hxg5 {[%clk 0:01:42]}  Qf5 {[%clk 0:00:24]} 33. Qxe3 {[%clk 0:01:42]}  fxe3 {[%clk 0:00:20]} 34. Rxf5 {[%clk 0:01:42]}  Rxd3 {[%clk 0:00:19]} 35. Kf1 {[%clk 0:01:36]}  Rxd4 {[%clk 0:00:19]} 36. e6 {[%clk 0:01:35]}  Re4 {[%clk 0:00:18]} 37. Rxd5 {[%clk 0:01:34]}  Rxe6 {[%clk 0:00:18]} 38. Ke2 {[%clk 0:01:32]}  Kg7 {[%clk 0:00:18]} 39. g4 {[%clk 0:01:31]}  Kg6 {[%clk 0:00:18]} 40. Rb5 {[%clk 0:01:31]}  Re4 {[%clk 0:00:16]} 41. Rxb6+ {[%clk 0:01:30]}  Kxg5 {[%clk 0:00:16]} 42. Rb5+ {[%clk 0:01:31]}  Kxg4 {[%clk 0:00:14]} 43. Rxa5 {[%clk 0:01:32]}  h5 {[%clk 0:00:14]} 44. Ra8 {[%clk 0:01:32]}  h4 {[%clk 0:00:13]} 45. a5 {[%clk 0:01:26]}  h3 {[%clk 0:00:11]} 46. Rh8 {[%clk 0:01:22]}  Kg3 {[%clk 0:00:10]} 47. a6 {[%clk 0:01:23]}  Ra4 {[%clk 0:00:09]} 48. Kxe3 {[%clk 0:01:21]}  Rxa6 {[%clk 0:00:06]} 49. Rg8+ {[%clk 0:01:22]}  Kh2 {[%clk 0:00:06]} 50. Kf2 {[%clk 0:01:22]}  Rf6+ {[%clk 0:00:06]} 51. Ke2 {[%clk 0:01:21]}  Kh1 {[%clk 0:00:06]} 52. Rg7 {[%clk 0:01:21]}  h2 {[%clk 0:00:06]} 53. Rg8 {[%clk 0:01:22]}  Rf5 {[%clk 0:00:06]} 54. Rg7 {[%clk 0:01:22]}  Rf6 {[%clk 0:00:06]} 55. Rg8 {[%clk 0:01:22]}  Rf5 {[%clk 0:00:07]} 56. Rg7 {[%clk 0:01:23]}  Rf6 {[%clk 0:00:07]} 1/2-1/2


[Site "https://www.chess.com"]